{"text_format":"1","workbook":"xlsx","n_sheets":4,"sheets":["Mapa_Compl_Req","Tabela","TemplateAnexo","Anexo"],"not_rendered":{"charts":0,"images":2,"macros":1,"external_links":0,"defined_names":4,"comments":3,"pivot_tables":0},"unopened":[],"bounds":{"document_bytes":16777216,"sheet_cells":100000,"rows_first":2000,"rows_last":500,"rows_between":2000,"halvings":0,"cell_chars":16384,"cell_head_chars":4096},"cells_cut":0,"cells_raw":0,"read":"whole","date_system":"1900"}

{"sheet":"Mapa_Compl_Req","index":0,"n_rows":84,"n_cols":30,"rows_kept":84,"cut":false,"hidden":false,"merged":[[15,13,16,13],[15,2,16,2],[15,3,16,3],[15,4,16,4],[13,9,13,12],[15,5,16,5],[12,0,12,8],[15,0,16,0],[15,1,16,1],[12,9,12,18],[13,2,13,8],[15,14,16,14],[15,15,16,15],[15,16,16,16],[15,17,16,17],[15,18,16,18],[15,6,16,6],[15,7,16,7],[15,8,16,8],[15,9,16,9],[15,10,16,10],[13,13,13,18]]}
["AGECOP"]
["REQUERIMENTO DE REEMBOLSO POR EXPORTAÇÕES"]
["MAPA COMPLEMENTAR"]
[]
["Requerimento nº: "]
["Nome do declarante (importador ou fabricante): ",null,null,"XPTO"]
["NIF do declarante:",null,500000001]
["Nome do 1º adquirente (exportador): ",null,null,"OTPX"]
["NIF do exportador:",null,500000002]
["Data:","2026-05-29",null,{"$f":"IF(ISBLANK(B10),\"A DATA É OBRIGATÓRIA\",\"\")","v":""}]
[null,null,null,null,null,null,null,null,null,null,null,null,null,null,null,null,null,null," - "]
[]
["Informação relativa à exportação",null,null,null,null,null,null,null,null,"Informação relativa à 1ª transação em território nacional "]
["Factura do 1º adquirente (exportador)",null,"Descrição dos bens exportados e compensações equitativas",null,null,null,null,null,null,"Factura do declarante da AGECOP (importador/fabricante)",null,null,null,"Descrição dos bens transaccionados e compensações equitativas"]
["(A)","(B)","(C )","(D)","(E )","(F)","(G)","(H)","(I)","(J)","(K)","(L)","(M)","(N)","(O)","(P)","(Q)","(R )","(S)"]
[" Nº factura ","Data da factura (AAAA-MM-DD)","Código Tabela","Rubrica","Descrição dos produtos (referência)","Quantidade exportada","Capacidade por unidade (GB)","Compensação cobrada por unidade","Total das compensações a reembolsar (euros)","Nº factura ","Data (AAAA-MM-DD)","Declaração AGECOP ",null,"Código Tabela","Descrição dos produtos (referência)","Quantidade vendida 1ª transação","Capacidade por unidade (GB)","Compensação cobrada por unidade","Total das compensações cobradas (euros)"]
[null,null,null,null,null,null,null,null,null,null,null,"Período","Número",null,null,null,null,null,null,"12 meses (ou 6)","Data exp.","Quant. exp.","CE v.unit","CE  v. unit. exp.","Dif. Pedido Reembolso","Capaci-dade","CE v. unit. 1ª trans.","Total CE 1ª trans.","Nota Crédito","Código"]
[1746,"2025-12-03","23T",{"$f":"IF(ISERROR(VLOOKUP(C18,tabela,2)),\"\",VLOOKUP(C18,tabela,2))","v":"Memórias ou discos rigidos integrados em aparelhos tabletes multimedia que disponham de ecrãs tateis e permitam armazenar obras musicais e audiovisuais"},"TABLET , TN-T830NZKATPH",240,64,7.68,{"$f":"+F18*H18","v":1843.1999999999998},68897,"2025-11-25",null,null,{"$f":"C18","v":"23T"},"TABLET , TN-T830NZKATPH",400,{"$f":"G18","v":64},{"$f":"H18","v":7.68},{"$f":"P18*R18","v":3072},{"$f":"IF(AND($B$10>data_limite(K18),K18<>\"\"),\"Erro\",\"ok\")","v":"ok"},{"$f":"IF(B18<K18,\"Erro\",\"ok\")","v":"ok"},{"$f":"IF(P18<F18,\"Erro\",\"ok\")","v":"ok"},{"$f":"compensacao(N18,G18)","v":7.68},{"$f":"IF(compensacao(N18,G18)=H18,\"ok\", \"Erro\")","v":"ok"},{"$f":"+W18*F18-I18","v":0},{"$f":"IF(Q18=G18,\"ok\",\"Erro\")","v":"ok"},{"$f":"IF(R18=W18,\"ok\",\"Erro\")","v":"ok"},{"$f":"IF(S18=P18*W18,\"ok\",\"Erro\")","v":"ok"},{"$f":"IF(LEFT(A18,2)=\"NC\",IF(F18<0,\"ok\",\"erro\"),\"ok\")","v":"ok"},{"$f":"IF(C18=N18,\"ok\",\"erro\")","v":"ok"}]
[1746,"2025-12-03","23T","Memórias ou discos rigidos integrados em aparelhos tabletes multimedia que disponham de ecrãs tateis e permitam armazenar obras musicais e audiovisuais","TABLET , TN-T830NZKATPH",60,64,7.68,{"$f":"+F19*H19","v":460.79999999999995},69525,"2025-11-27",null,null,"23T","TABLET , TN-T830NZKATPH",100,{"$f":"G19","v":64},{"$f":"H19","v":7.68},768,{"$f":"IF(AND($B$10>data_limite(K19),K19<>\"\"),\"Erro\",\"ok\")","v":"ok"},{"$f":"IF(B19<K19,\"Erro\",\"ok\")","v":"ok"},{"$f":"IF(P19<F19,\"Erro\",\"ok\")","v":"ok"},{"$f":"compensacao(N19,G19)","v":7.68},{"$f":"IF(compensacao(N19,G19)=H19,\"ok\", \"Erro\")","v":"ok"},{"$f":"+W19*F19-I19","v":0},{"$f":"IF(Q19=G19,\"ok\",\"Erro\")","v":"ok"},{"$f":"IF(R19=W19,\"ok\",\"Erro\")","v":"ok"},{"$f":"IF(S19=P19*W19,\"ok\",\"Erro\")","v":"ok"},"ok",{"$f":"IF(C19=N19,\"ok\",\"erro\")","v":"ok"}]
["NC2550/FT1746","2025-12-20","23T","Memórias ou discos rigidos integrados em aparelhos tabletes multimedia que disponham de ecrãs tateis e permitam armazenar obras musicais e audiovisuais","TABLET , TN-T830NZKATPH",-10,64,7.68,-76.8,68897,"2025-11-25",null,null,"23T","TABLET , TN-T830NZKATPH",400,64,7.68,3072,{"$f":"IF(AND($B$10>data_limite(K20),K20<>\"\"),\"Erro\",\"ok\")","v":"ok"},"ok","ok",7.68,"ok",0,"ok","ok","ok","ok","ok"]
[null,null,null,"",null,null,null,null,0,null,null,null,null,0,null,null,0,0,0,{"$f":"IF(AND($B$10>data_limite(K21),K21<>\"\"),\"Erro\",\"ok\")","v":"ok"},"ok","ok",0,"ok",0,"ok","ok","ok","ok","ok"]
[null,null,null,"",null,null,null,null,0,null,null,null,null,0,null,null,0,0,0,{"$f":"IF(AND($B$10>data_limite(K22),K22<>\"\"),\"Erro\",\"ok\")","v":"ok"},"ok","ok",0,"ok",0,"ok","ok","ok","ok","ok"]
[null,null,null,"",null,null,null,null,0,null,null,null,null,0,null,null,0,0,0,{"$f":"IF(AND($B$10>data_limite(K23),K23<>\"\"),\"Erro\",\"ok\")","v":"ok"},"ok","ok",0,"ok",0,"ok","ok","ok","ok","ok"]
[null,null,null,"",null,null,null,null,0,null,null,null,null,0,null,null,0,0,0,{"$f":"IF(AND($B$10>data_limite(K24),K24<>\"\"),\"Erro\",\"ok\")","v":"ok"},"ok","ok",0,"ok",0,"ok","ok","ok","ok","ok"]
[null,null,null,"",null,null,null,null,0,null,null,null,null,0,null,null,0,0,0,{"$f":"IF(AND($B$10>data_limite(K25),K25<>\"\"),\"Erro\",\"ok\")","v":"ok"},"ok","ok",0,"ok",0,"ok","ok","ok","ok","ok"]
[null,null,null,"",null,null,null,null,0,null,null,null,null,0,null,null,0,0,0,{"$f":"IF(AND($B$10>data_limite(K26),K26<>\"\"),\"Erro\",\"ok\")","v":"ok"},"ok","ok",0,"ok",0,"ok","ok","ok","ok","ok"]
[null,null,null,"",null,null,null,null,0,null,null,null,null,0,null,null,0,0,0,{"$f":"IF(AND($B$10>data_limite(K27),K27<>\"\"),\"Erro\",\"ok\")","v":"ok"},"ok","ok",0,"ok",0,"ok","ok","ok","ok","ok"]
[null,null,null,"",null,null,null,null,0,null,null,null,null,0,null,null,0,0,0,{"$f":"IF(AND($B$10>data_limite(K28),K28<>\"\"),\"Erro\",\"ok\")","v":"ok"},"ok","ok",0,"ok",0,"ok","ok","ok","ok","ok"]
[null,null,null,"",null,null,null,null,0,null,null,null,null,0,null,null,0,0,0,{"$f":"IF(AND($B$10>data_limite(K29),K29<>\"\"),\"Erro\",\"ok\")","v":"ok"},"ok","ok",0,"ok",0,"ok","ok","ok","ok","ok"]
[null,null,null,"",null,null,null,null,0,null,null,null,null,0,null,null,0,0,0,{"$f":"IF(AND($B$10>data_limite(K30),K30<>\"\"),\"Erro\",\"ok\")","v":"ok"},"ok","ok",0,"ok",0,"ok","ok","ok","ok","ok"]
[null,null,null,"",null,null,null,null,0,null,null,null,null,0,null,null,0,0,0,{"$f":"IF(AND($B$10>data_limite(K31),K31<>\"\"),\"Erro\",\"ok\")","v":"ok"},"ok","ok",0,"ok",0,"ok","ok","ok","ok","ok"]
[null,null,null,{"$f":"IF(ISERROR(VLOOKUP(C32,tabela,2)),\"\",VLOOKUP(C32,tabela,2))","v":""},null,null,null,null,0,null,null,null,null,0,null,null,0,0,0,{"$f":"IF(AND($B$10>data_limite(K32),K32<>\"\"),\"Erro\",\"ok\")","v":"ok"},"ok","ok",0,"ok",0,"ok","ok","ok","ok","ok"]
[null,null,null,"",null,null,null,null,0,null,null,null,null,0,null,null,0,0,0,{"$f":"IF(AND($B$10>data_limite(K33),K33<>\"\"),\"Erro\",\"ok\")","v":"ok"},"ok","ok",0,"ok",0,"ok","ok","ok","ok","ok"]
[null,null,null,"",null,null,null,null,0,null,null,null,null,0,null,null,0,0,0,{"$f":"IF(AND($B$10>data_limite(K34),K34<>\"\"),\"Erro\",\"ok\")","v":"ok"},"ok","ok",0,"ok",0,"ok","ok","ok","ok","ok"]
[null,null,null,"",null,null,null,null,0,null,null,null,null,0,null,null,0,0,0,{"$f":"IF(AND($B$10>data_limite(K35),K35<>\"\"),\"Erro\",\"ok\")","v":"ok"},"ok","ok",0,"ok",0,"ok","ok","ok","ok","ok"]
[null,null,null,"",null,null,null,null,0,null,null,null,null,0,null,null,0,0,0,{"$f":"IF(AND($B$10>data_limite(K36),K36<>\"\"),\"Erro\",\"ok\")","v":"ok"},"ok","ok",0,"ok",0,"ok","ok","ok","ok","ok"]
[null,null,null,"",null,null,null,null,0,null,null,null,null,0,null,null,0,0,0,{"$f":"IF(AND($B$10>data_limite(K37),K37<>\"\"),\"Erro\",\"ok\")","v":"ok"},"ok","ok",0,"ok",0,"ok","ok","ok","ok","ok"]
[null,null,null,{"$f":"IF(ISERROR(VLOOKUP(C38,tabela,2)),\"\",VLOOKUP(C38,tabela,2))","v":""},null,null,null,null,0,null,null,null,null,0,null,null,0,0,0,{"$f":"IF(AND($B$10>data_limite(K38),K38<>\"\"),\"Erro\",\"ok\")","v":"ok"},"ok","ok",0,"ok",0,"ok","ok","ok","ok","ok"]
[null,null,null,"",null,null,null,null,0,null,null,null,null,0,null,null,0,0,0,{"$f":"IF(AND($B$10>data_limite(K39),K39<>\"\"),\"Erro\",\"ok\")","v":"ok"},"ok","ok",0,"ok",0,"ok","ok","ok","ok","ok"]
[null,null,null,"",null,null,null,null,0,null,null,null,null,0,null,null,0,0,0,{"$f":"IF(AND($B$10>data_limite(K40),K40<>\"\"),\"Erro\",\"ok\")","v":"ok"},"ok","ok",0,"ok",0,"ok","ok","ok","ok","ok"]
[null,null,null,"",null,null,null,null,0,null,null,null,null,0,null,null,0,0,0,{"$f":"IF(AND($B$10>data_limite(K41),K41<>\"\"),\"Erro\",\"ok\")","v":"ok"},"ok","ok",0,"ok",0,"ok","ok","ok","ok","ok"]
[null,null,null,"",null,null,null,null,0,null,null,null,null,0,null,null,0,0,0,{"$f":"IF(AND($B$10>data_limite(K42),K42<>\"\"),\"Erro\",\"ok\")","v":"ok"},"ok","ok",0,"ok",0,"ok","ok","ok","ok","ok"]
[null,null,null,"",null,null,null,null,0,null,null,null,null,0,null,null,0,0,0,{"$f":"IF(AND($B$10>data_limite(K43),K43<>\"\"),\"Erro\",\"ok\")","v":"ok"},"ok","ok",0,"ok",0,"ok","ok","ok","ok","ok"]
[null,null,null,"",null,null,null,null,0,null,null,null,null,0,null,null,0,0,0,{"$f":"IF(AND($B$10>data_limite(K44),K44<>\"\"),\"Erro\",\"ok\")","v":"ok"},"ok","ok",0,"ok",0,"ok","ok","ok","ok","ok"]
[null,null,null,"",null,null,null,null,0,null,null,null,null,0,null,null,0,0,0,{"$f":"IF(AND($B$10>data_limite(K45),K45<>\"\"),\"Erro\",\"ok\")","v":"ok"},"ok","ok",0,"ok",0,"ok","ok","ok","ok","ok"]
[null,null,null,"",null,null,null,null,0,null,null,null,null,0,null,null,0,0,0,{"$f":"IF(AND($B$10>data_limite(K46),K46<>\"\"),\"Erro\",\"ok\")","v":"ok"},"ok","ok",0,"ok",0,"ok","ok","ok","ok","ok"]
[null,null,null,"",null,null,null,null,0,null,null,null,null,0,null,null,0,0,0,{"$f":"IF(AND($B$10>data_limite(K47),K47<>\"\"),\"Erro\",\"ok\")","v":"ok"},"ok","ok",0,"ok",0,"ok","ok","ok","ok","ok"]
[null,null,null,"",null,null,null,null,0,null,null,null,null,0,null,null,0,0,0,{"$f":"IF(AND($B$10>data_limite(K48),K48<>\"\"),\"Erro\",\"ok\")","v":"ok"},"ok","ok",0,"ok",0,"ok","ok","ok","ok","ok"]
[null,null,null,"",null,null,null,null,0,null,null,null,null,0,null,null,0,0,0,{"$f":"IF(AND($B$10>data_limite(K49),K49<>\"\"),\"Erro\",\"ok\")","v":"ok"},"ok","ok",0,"ok",0,"ok","ok","ok","ok","ok"]
[null,null,null,null,null,{"$f":"SUM(F18:F49)","v":290},null,null,{"$f":"SUM(I18:I49)","v":2227.1999999999998},null,null,null,null,null,null,null,null,null,null,null,null,null,null,null,{"$f":"SUM(Y18:Y49)","v":0}]
[]
[]
[]
[]
[null,"Termo de responsabilidade pela veracidade da informação prestada:"]
[]
[null,"Exportador (1º adquirente em território nacional e que exportou os aparelhos, dispositivos e suportes)"]
[]
[null,"O exportador assume a responsabilidade pela veracidade da informação prestada à exportação titulada pelas facturas identificadas na coluna A."]
[null,"Mais declara e garante que os artigos agora exportados foram por si adquiridos e constam das facturas identificadas na coluna J."]
[null,"Declara, ainda, que o propósito do presente requerimento de reembolso é o de solicitar à AGECOP a aprovação do crédito das compensações equitativas."]
[null,"Se o requerimento for deferido, o exportador poderá obter o crédito, por parte do Declarante, das compensações equitativas que lhe foram cobradas na primeira transação em território nacional, constante na coluna I."]
[]
[null,"Nome do responsável: "]
[]
[null,"Assinatura: ______________________________________________"]
[]
[]
[null,"Data:","___/___/_____"]
[]
[]
[]
[null,"Notas:"]
[null,"1) O presente mapa é parte integrante do requerimento de reembolso por exportações e deverá ser entregue juntamente com o mesmo, à AGECOP."]
[null,"2) O presente mapa deve também ser enviado à AGECOP em formato Excel, para além da versão digitalizada com as assinaturas."]
[null,"3) A informação deve ser agrupada por número de factura de exportação."]
[null,"4) Na coluna P deve ser indicada a quantidade que consta na factura do importador / fabricante para aquela referência e que tem de ser igual ou superior à quantidade exportada, indicada na coluna F."]
[null,"5) Nas colunas E e O, a referência dos bens deverá ser a que consta tanto na factura de exportação, como na factura da 1ª transação em território nacional."]
[null,"6) No caso da informação a constar nas colunas L e M não estar disponível à data do envio do requerimento, a mesma deverá ser enviada à AGECOP logo que o esteja."]
[null,"7) O documento deve ser assinado por quem tenha poderes de representação de acordo com o definido no Código das Sociedades Comerciais, devendo as assinaturas serem reconhecidas nos termos da lei notarial."]
[]
[null,"O mapa complementar tem um exemplo de preenchimento, para uma factura onde tenham sido exportadas 300 unidades da referência “TABLET , TN-T830NZKATPH”, que foram adquiridas em transacções tituladas por duas facturas de compra distintas (240 unidades na factura 68897 e 60 unidades na factura 69525). "]
[null,"Prevê, também, a devolução de 10 unidades previamente exportadas (adquiridas com a factura nº 68897). "]
[null,"Na indicação do nº das notas de crédito, deverá ser respeitado o seguinte formato: NC_____(nº da nota de crédito)/FT______(nº da factura que foi alvo da nota de crédito)."]

{"sheet":"Tabela","index":1,"n_rows":33,"n_cols":4,"rows_kept":33,"cut":false,"hidden":false,"merged":[]}
["codigo","nome","regra","categoria"]
["1A","Equipamentos multifunções ou fotocopiadoras jato de tinta","5€ a unidade","Aparelhos, equipamentos e instrumentos técnicos de reprodução"]
["1B40","Equipamentos multifunções ou fotocopiadoras laser -  até 40 páginas por minuto","Até 40 páginas por minuto: 10€ por unidade. ","Aparelhos, equipamentos e instrumentos técnicos de reprodução"]
["1B40+","Equipamentos multifunções ou fotocopiadoras laser- mais de 40  páginas por minuto","mais de 40 páginas por minuto: 20€ por unidade.","Aparelhos, equipamentos e instrumentos técnicos de reprodução"]
["1C","Scanners e outros equipamentos destinados apenas à digitalização","2€ por unidade","Aparelhos, equipamentos e instrumentos técnicos de reprodução"]
["1D","Impressoras jato de tinta","2,5€ por unidade","Aparelhos, equipamentos e instrumentos técnicos de reprodução"]
["1E","Impressoras laser","7,5€ por unidade","Aparelhos, equipamentos e instrumentos técnicos de reprodução"]
["21A","Gravadores de áudio","0,20€ por unidade","Equipamentos e aparelhos analógicos"]
["21B","Gravadores vídeo","0,20€ por unidade","Equipamentos e aparelhos analógicos"]
["22A","Gravadores de discos compactos específicos (CD)","1€ por unidade","Equipamentos e aparelhos digitais que compreendam as seguintes funções e não tenham incluídas memórias ou discos rígidos"]
["22B","Gravadores de discos versáteis","2€ por unidade","Equipamentos e aparelhos digitais que compreendam as seguintes funções e não tenham incluídas memórias ou discos rígidos"]
["22C","Gravadores mistos de discos compactos (CD e DVD)","3€ por unidade","Equipamentos e aparelhos digitais que compreendam as seguintes funções e não tenham incluídas memórias ou discos rígidos"]
["22D","Gravadores de discos Blu-ray","3€ por unidade","Equipamentos e aparelhos digitais que compreendam as seguintes funções e não tenham incluídas memórias ou discos rígidos"]
["23A","Suportes materiais analógicos, como cassetes áudio ou similares","0,10€ por unidade","Suportes e dispositivos de armazenamento"]
["23B","Suportes materiais analógicos, como cassetes vídeo ou similares","0,10€ por unidade","Suportes e dispositivos de armazenamento"]
["23C","Discos compactos (CD) não regraváveis","0,05€ por unidade","Suportes e dispositivos de armazenamento"]
["23D","Discos compactos de 8 centímetros","0,05€ por unidade","Suportes e dispositivos de armazenamento"]
["23E","Discos de formato \"Minidisc\"","0,05€ por unidade","Suportes e dispositivos de armazenamento"]
["23F","Discos compactos regraváveis (CD-RW)","0,10€ por unidade","Suportes e dispositivos de armazenamento"]
["23G","Discos versáteis não regraváveis (DVD-R)","0,10€ por unidade","Suportes e dispositivos de armazenamento"]
["23H","Discos versáteis regraváveis (DVD-RW)","0,20€ por unidade","Suportes e dispositivos de armazenamento"]
["23I","Discos versáteis RAM (DVD-RAM)","0,20€ por unidade","Suportes e dispositivos de armazenamento"]
["23J","Discos Blu-ray","0,20€ por unidade","Suportes e dispositivos de armazenamento"]
["23K","Memórias USB","0,016€ por cada GB de capacidade de armazenamento ou fração, com o limite de 7,5€.","Suportes e dispositivos de armazenamento"]
["23L","Cartões de memória","0,016€ por cada GB de capacidade de armazenamento ou fração, com o limite de 7,5€.","Suportes e dispositivos de armazenamento"]
["23M","Memórias e discos rígidos integrados em aparelhos com funções de cópia de fonogramas e/ou videogramas","0,016€ por cada GB de capacidade de armazenamento ou fração, com o limite de 15€.","Suportes e dispositivos de armazenamento"]
["23N","Suportes ou dispositivos de armazenamento, como discos externos denominados «multimédia» \r\nou outros que disponham de uma ou mais saídas ou entradas de audio e video e que permitam o registo de sons e ou imagens animadas","0,016€ por cada GB de capacidade de armazenamento ou fração, com o limite de 15€.","Suportes e dispositivos de armazenamento"]
["23O","Memórias e discos rígidos integrados em aparelhos com função de televisor e em aparelhos que assegurem o interface \r\nentre o sinal de televisivo e o televisor, incluindo os descodificadores ou aparelhos de acesso a serviços de televisão \r\npor subscrição, que permitam armazenar sons e imagens animadas.","0,016€ por cada GB de capacidade de armazenamento ou fração, com o limite de 15€.","Suportes e dispositivos de armazenamento"]
["23P","Memórias ou discos rigidos integrados em computadores que não se incluam na alinea anterior","0,004€ por cada GB de capacidade ou fração, com o limite de 7,5€","Suportes e dispositivos de armazenamento"]
["23Q","Discos rígidos internos ou externos que dependam de um computador ou de outros equipamentos ou aparelhos para desempenhar \r\na função de reprodução e que permitam o armazenamento de imagens animadas e sons","0,004€ por cada GB de capacidade ou fração, com o limite de 7,5€","Suportes e dispositivos de armazenamento"]
["23R","Memórias e discos rigidos integrados em aparelhos dedicados a reprodução, leitura e armazenamento de fonogramas, quaisquer obras musicais e outros conteudos sonoros em formato comprimido","0,20€ por cada GB de capacidade ou fração, com o limite de 15€","Suportes e dispositivos de armazenamento"]
["23S","Memórias e discos rigidos integrados em telefones móveis que permitam armazenar, ouvir obras musicais e ver obras audiovisuais","0,12€ por cada GB de capacidade ou fração, com o limite de 15€","Suportes e dispositivos de armazenamento"]
["23T","Memórias ou discos rigidos integrados em aparelhos tabletes multimedia que disponham de ecrãs tateis e permitam armazenar obras musicais e audiovisuais","0,12€ por cada GB de capacidade ou fração, com o limite de 15€","Suportes e dispositivos de armazenamento"]

{"sheet":"TemplateAnexo","index":2,"n_rows":24,"n_cols":15,"rows_kept":24,"cut":false,"hidden":true,"merged":[[10,10,11,10],[10,1,11,1],[10,5,11,5],[10,6,11,6],[10,7,11,7],[10,8,11,8],[10,9,11,9]]}
[]
[]
[]
[null,"ANEXO À DECLARAÇÃO DO DECLARANTE DA AGECOP (IMPORTADOR/FABRICANTE)"]
[null,"(Para efeitos do previsto no nº 5 do art.º 4º, da Lei nº 62/98, alterada pela Lei nº 50/2004, pela Lei nº 49/2015 e pelo Decreto-Lei nº 100/2017)"]
[]
[]
[null,"Informação relativa à 1ª transação em território nacional "]
[null,"Factura do declarante da AGECOP (importador/fabricante)",null,null,null,"Descrição dos bens transaccionados e compensações equitativas"]
[null,"(B)","(C)","(D)","(E)","(F)","(G)","(H)","(I )","(J)","(K)"]
[null,"Nº factura ",null,"Declaração AGECOP  ",null,"Código Tabela","Descrição dos produtos (referência)","Quantidade vendida 1ª transação","Capacidade por unidade (GB)","Compensação cobrada por unidade","Total das compensações cobradas (euros)"]
[null,null,"Data \n(AAAA-MM-DD)","Periodo","Número",null,null,null,null,null,null,null,"CE  v. unit. exp.","CE  v. unit. exp.","Total CE 1ª trans."]
[null,null,null,null,null,null,null,null,null,null,0,null,{"$f":"compensacao(F13,I13)","v":0},{"$f":"IF(J13=M13, \"ok\", \"Erro\")","v":"ok"},{"$f":"IF(H13*M13=K13,\"ok\",\"Erro\")","v":"ok"}]
[]
[]
[null,"Nome do responsável: _______________________________________________________"]
[null,"Assinatura: _________________________________________________________________"]
[null,"Data:","_____ /_____ /_______"]
[]
[null,"1) O presente mapa é parte integrante da declaração do declarante (importador/fabricante) e deverá ser entregue juntamente com a mesma, à AGECOP."]
[null,"2) O presente mapa deve também ser enviado à AGECOP em formato Excel, para além da versão digitalizada com as assinaturas."]
[null,"3) A informação deve ser agrupada por número de factura."]
[null,"4) No caso da informação a constar nas colunas C e D não estar disponível à data da emissão da declaração, a mesma deverá ser enviada à AGECOP logo que o esteja."]
[null,"5) O documento deve ser assinado por quem tenha poderes de representação de acordo com o definido no Código das Sociedades Comerciais, devendo as assinaturas serem reconhecidas nos termos da lei notarial."]

{"sheet":"Anexo","index":3,"n_rows":25,"n_cols":15,"rows_kept":25,"cut":false,"hidden":false,"merged":[[10,10,11,10],[10,1,11,1],[10,5,11,5],[10,6,11,6],[10,7,11,7],[10,8,11,8],[10,9,11,9]]}
[]
[]
[]
[null,"ANEXO À DECLARAÇÃO DO DECLARANTE DA AGECOP (IMPORTADOR/FABRICANTE)"]
[null,"(Para efeitos do previsto no n.º 5 do art.º 4º, da Lei n.º 62/98, alterada pela Lei n.º 50/2004, pela Lei n.º 49/2015, pelo Decreto-Lei n.º 100/2017 e pela Lei n.º 2/2020)"]
[]
[]
[null,"Informação relativa à 1ª transação em território nacional "]
[null,"Factura do declarante da AGECOP (importador/fabricante)",null,null,null,"Descrição dos bens transaccionados e compensações equitativas"]
[null,"(B)","(C)","(D)","(E)","(F)","(G)","(H)","(I )","(J)","(K)"]
[null,"Nº factura ",null,"Declaração AGECOP  ",null,"Código Tabela","Descrição dos produtos (referência)","Quantidade vendida 1ª transação","Capacidade por unidade (GB)","Compensação cobrada por unidade","Total das compensações cobradas (euros)"]
[null,null,"Data \n(AAAA-MM-DD)","Periodo","Número",null,null,null,null,null,null,null,"CE  v. unit. exp.","CE  v. unit. exp.","Total CE 1ª trans."]
[null,68897,"2025-11-25",null,null,"23T","TABLET , TN-T830NZKATPH",400,64,7.68,3072,null,{"$f":"compensacao(F13,I13)","v":7.68},{"$f":"IF(J13=M13, \"ok\", \"Erro\")","v":"ok"},{"$f":"IF(H13*M13=K13,\"ok\",\"Erro\")","v":"ok"}]
[null,69525,"2025-11-27",null,null,"23T","TABLET , TN-T830NZKATPH",100,64,7.68,768,null,{"$f":"compensacao(F14,I14)","v":7.68},{"$f":"IF(J14=M14, \"ok\", \"Erro\")","v":"ok"},{"$f":"IF(H14*M14=K14,\"ok\",\"Erro\")","v":"ok"}]
[]
[]
[null,"Nome do responsável: _______________________________________________________"]
[null,"Assinatura: _________________________________________________________________"]
[null,"Data:","_____ /_____ /_______"]
[]
[null,"1) O presente mapa é parte integrante da declaração do declarante (importador/fabricante) e deverá ser entregue juntamente com a mesma, à AGECOP."]
[null,"2) O presente mapa deve também ser enviado à AGECOP em formato Excel, para além da versão digitalizada com as assinaturas."]
[null,"3) A informação deve ser agrupada por número de factura."]
[null,"4) No caso da informação a constar nas colunas C e D não estar disponível à data da emissão da declaração, a mesma deverá ser enviada à AGECOP logo que o esteja."]
[null,"5) O documento deve ser assinado por quem tenha poderes de representação de acordo com o definido no Código das Sociedades Comerciais, devendo as assinaturas serem reconhecidas nos termos da lei notarial."]